bitfinex/quotes_BTCUSD_20250830
["timestamp","ask_amount","ask_price","bid_price","bid_amount"]
[1756561112738,1.26633151,108720.0,108710.0,0.59152001]
[1756561112952,1.26331151,108720.0,108710.0,0.59152001]
[1756561113381,1.26633151,108720.0,108710.0,0.59152001]
[1756561114138,1.26633151,108720.0,108710.0,0.59252001]
[1756561114438,1.26632834,108720.0,108710.0,0.59252001]
[1756561114947,1.26632834,108720.0,108710.0,0.43584001]
[1756561115218,1.26632834,108720.0,108710.0,0.4995]
[1756561115630,1.27279984,108720.0,108710.0,0.4995]
[1756561116012,1.61897427,108720.0,108710.0,0.34286]
[1756561116256,1.27279984,108720.0,108710.0,0.4995]
[1756561116460,1.61897427,108720.0,108710.0,0.4995]
[1756561116667,1.61897427,108720.0,108710.0,0.34286]
[1756561116771,1.27279984,108720.0,108710.0,0.4995]
[1756561117447,1.27279984,108720.0,108710.0,0.34286]
[1756561117674,1.27279984,108720.0,108710.0,0.4995]
[1756561118015,1.27278442,108720.0,108710.0,0.4995]
[1756561118218,1.27278321,108720.0,108710.0,0.4995]
[1756561118655,1.27278321,108720.0,108710.0,0.4965]
[1756561119228,1.26631621,108720.0,108710.0,0.4965]
[1756561119435,1.27278235,108720.0,108710.0,0.4965]
[1756561119842,1.26631621,108720.0,108710.0,0.4965]
[1756561125561,1.61895345,108720.0,108710.0,0.4965]
[1756561126544,1.27277902,108720.0,108710.0,0.4965]
[1756561126745,1.61895345,108720.0,108710.0,0.4965]
[1756561128326,1.27277902,108720.0,108710.0,0.4965]
[1756561128665,1.27276103,108720.0,108710.0,0.4965]
[1756561128817,1.27276115,108720.0,108710.0,0.4965]
[1756561129312,1.27276097,108720.0,108710.0,0.4965]
[1756561130927,1.26629929,108720.0,108710.0,0.4965]
[1756561132210,1.27276068,108720.0,108710.0,0.4965]
[1756561132596,1.26974068,108720.0,108710.0,0.4965]
[1756561135600,1.26974068,108720.0,108710.0,0.49846]
[1756561136134,0.57739182,108720.0,108710.0,0.49846]
[1756561136339,1.26974068,108720.0,108710.0,0.49846]
[1756561139436,1.26974929,108720.0,108710.0,0.49846]
[1756561140164,1.26328514,108720.0,108710.0,0.49846]
[1756561140378,1.26975021,108720.0,108710.0,0.49846]
[1756561142493,1.28961534,108720.0,108710.0,0.50148]
[1756561144262,0.59726648,108720.0,108710.0,0.50148]
[1756561144503,1.28753534,108720.0,108710.0,0.50148]
[1756561145189,1.28952516,108720.0,108710.0,0.50148]
[1756561145689,1.26966003,108720.0,108710.0,0.50148]
[1756561145947,1.26966003,108720.0,108710.0,0.49842]
[1756561146415,1.28953368,108720.0,108710.0,0.49842]
[1756561146836,0.59718482,108720.0,108710.0,0.49842]
[1756561147068,1.28953368,108720.0,108710.0,0.50144]
[1756561147856,0.59718482,108720.0,108710.0,0.50144]
[1756561148083,1.28953368,108720.0,108710.0,0.50144]
[1756561148652,1.28953236,108720.0,108710.0,0.50144]
[1756561151025,1.63887679,108720.0,108710.0,0.33986]
[1756561151255,1.63887679,108720.0,108710.0,0.1566]
[1756561153095,0.18397571,108710.0,108700.0,0.2691]
[1756561153300,0.90518563,108710.0,108700.0,0.42566]
[1756561153684,0.9527136,108710.0,108700.0,0.42566]
[1756561154079,0.9495436,108710.0,108700.0,0.42566]
[1756561155616,0.9495436,108710.0,108700.0,0.43064]
[1756561156025,0.94756813,108710.0,108700.0,0.43064]
[1756561156230,0.92770416,108710.0,108700.0,0.43064]
[1756561158758,1.00556732,108710.0,108700.0,0.42762]
[1756561158974,1.00556732,108710.0,108700.0,0.43064]
[1756561159173,0.92967416,108710.0,108700.0,0.43064]
[1756561159379,0.90595857,108710.0,108700.0,0.43064]
[1756561159565,0.92965442,108710.0,108700.0,0.43064]
[1756561159778,0.95246619,108710.0,108700.0,0.42566]
[1756561159980,0.92965442,108710.0,108700.0,0.42566]
[1756561160413,0.92965442,108710.0,108700.0,0.42771]
[1756561160971,0.94950487,108710.0,108700.0,0.42771]
[1756561161175,0.92965442,108710.0,108700.0,0.42771]
[1756561161556,0.92965442,108710.0,108700.0,0.2691]
[1756561161768,1.75168064,108710.0,108700.0,0.2691]
[1756561161975,1.75167896,108710.0,108700.0,0.42566]
[1756561163034,1.75167896,108710.0,108700.0,0.15656]
[1756561163635,1.75367896,108710.0,108700.0,0.15656]
[1756561163959,6.75567896,108710.0,108700.0,0.15656]
[1756561164346,0.18399264,108700.0,108690.0,0.33986]
[1756561164549,6.2482901,108700.0,108690.0,0.49642]
[1756561164756,1.2482901,108700.0,108690.0,0.49642]
[1756561165342,1.58182928,108700.0,108690.0,0.49847]
[1756561165543,1.60949628,108700.0,108690.0,0.49847]
[1756561165745,1.60949628,108700.0,108690.0,0.49642]
[1756561166554,1.61049628,108700.0,108690.0,0.49642]
[1756561166969,1.61149628,108700.0,108690.0,0.49642]
[1756561167333,1.6997926,108700.0,108690.0,0.49642]
[1756561168531,1.61149628,108700.0,108690.0,0.49642]
[1756561168763,1.61795003,108700.0,108690.0,0.49642]
[1756561168982,1.61795003,108700.0,108690.0,0.22732]
[1756561169182,1.61792677,108700.0,108690.0,0.22732]
[1756561169976,1.61792374,108700.0,108690.0,0.22732]
[1756561172730,1.61792374,108700.0,108690.0,0.22937]
[1756561173720,1.61792374,108700.0,108690.0,0.22732]
[1756561173915,1.62088374,108700.0,108690.0,0.22732]
[1756561174164,1.4368911,108700.0,108690.0,0.22732]
[1756561174366,1.62088374,108700.0,108690.0,0.22732]
[1756561174860,1.62088374,108700.0,108690.0,0.49642]
[1756561175697,1.61792374,108700.0,108690.0,0.49642]
[1756561176985,1.62088312,108700.0,108690.0,0.49642]
[1756561177604,1.61792312,108700.0,108690.0,0.49642]
[1756561180589,1.61793532,108700.0,108690.0,0.49642]
[1756561180740,1.61793532,108700.0,108690.0,0.22732]
[1756561180741,1.62089532,108700.0,108690.0,0.22732]
[1756561181588,1.61793532,108700.0,108690.0,0.22732]
[1756561182454,1.62089532,108700.0,108690.0,0.22732]
[1756561182650,1.62089532,108700.0,108690.0,0.15656]
[1756561182875,1.61793532,108700.0,108690.0,0.15656]
[1756561183886,1.63777237,108700.0,108690.0,0.15656]
[1756561187593,1.63777237,108700.0,108690.0,0.15861]
[1756561188805,1.63777237,108700.0,108690.0,0.16156]
[1756561191318,0.52400956,108690.0,108680.0,0.00297]
[1756561191522,1.24004468,108690.0,108680.0,0.2691]
[1756561191744,1.26203833,108690.0,108680.0,0.42558]
[1756561191950,1.26203833,108690.0,108680.0,0.42772]
[1756561192673,1.28970633,108690.0,108680.0,0.42772]
[1756561192904,1.28970633,108690.0,108680.0,0.42872]
[1756561193082,1.28970633,108690.0,108680.0,0.43169]
[1756561198978,1.28756633,108690.0,108680.0,0.43169]
[1756561199315,0.59521747,108690.0,108680.0,0.43169]
[1756561199607,1.28756633,108690.0,108680.0,0.43169]
[1756561201169,1.28757221,108690.0,108680.0,0.43169]
[1756561201415,1.28757401,108690.0,108680.0,0.43169]
[1756561201809,1.28757398,108690.0,108680.0,0.43169]
[1756561206130,1.26772033,108690.0,108680.0,0.43169]
[1756561210712,1.2504888,108690.0,108680.0,0.43169]
[1756561211015,1.26125923,108690.0,108680.0,0.43169]
[1756561211212,1.24402642,108690.0,108680.0,0.43169]
[1756561211563,0.57751301,108690.0,108680.0,0.43169]
[1756561211785,1.26986187,108690.0,108680.0,0.43169]
[1756561212391,1.24616642,108690.0,108680.0,0.43169]
[1756561212973,1.26601943,108690.0,108680.0,0.43169]
[1756561213171,1.26339946,108690.0,108680.0,0.43169]
[1756561213380,1.27248187,108690.0,108680.0,0.43169]
[1756561213545,1.27248187,108690.0,108680.0,0.42872]
[1756561213973,1.28971549,108690.0,108680.0,0.43169]
[1756561214534,1.28971522,108690.0,108680.0,0.43169]
[1756561216032,1.28971522,108690.0,108680.0,0.42872]
[1756561216370,1.28971522,108690.0,108680.0,0.43169]
[1756561217681,1.28971522,108690.0,108680.0,0.27521]
[1756561217896,1.28971522,108690.0,108680.0,0.43161]
[1756561218070,1.28971522,108690.0,108680.0,0.42864]
[1756561221347,1.2897163,108690.0,108680.0,0.42864]
[1756561222040,1.2897163,108690.0,108680.0,0.43164]
[1756561224192,1.2897163,108690.0,108680.0,0.42864]
[1756561224964,1.28972162,108690.0,108680.0,0.42864]
[1756561225662,1.28972169,108690.0,108680.0,0.43164]
[1756561225844,1.28972168,108690.0,108680.0,0.43164]
[1756561228144,0.94354725,108690.0,108680.0,0.43164]
[1756561229236,0.92369421,108690.0,108680.0,0.43164]
[1756561230284,0.94355367,108690.0,108680.0,0.43164]
[1756561231451,0.59737924,108690.0,108680.0,0.43164]
[1756561231658,0.94355367,108690.0,108680.0,0.43164]
[1756561233887,0.59737924,108690.0,108680.0,0.43164]
[1756561234098,0.94355367,108690.0,108680.0,0.43164]
[1756561235510,0.92631573,108690.0,108680.0,0.43164]
[1756561235810,0.94141738,108690.0,108680.0,0.43164]
[1756561236451,0.92155792,108690.0,108680.0,0.43164]
[1756561237213,0.94141928,108690.0,108680.0,0.43164]
[1756561237761,0.94141928,108690.0,108680.0,0.45008]
[1756561237958,0.94141928,108690.0,108680.0,0.43164]
[1756561239194,0.94142014,108690.0,108680.0,0.43164]
[1756561240365,0.59524571,108690.0,108680.0,0.43164]
[1756561240572,0.94142014,108690.0,108680.0,0.43164]
[1756561245112,0.6902996,108690.0,108680.0,0.43164]
[1756561245332,0.87430916,108690.0,108680.0,0.43164]
[1756561246166,0.86784391,108690.0,108680.0,0.43164]
[1756561246373,0.87430777,108690.0,108680.0,0.43164]
[1756561246507,0.87626777,108690.0,108680.0,0.43164]
[1756561248459,0.87430777,108690.0,108680.0,0.43164]
[1756561249891,0.87430702,108690.0,108680.0,0.43164]
[1756561251583,0.87632702,108690.0,108680.0,0.43164]
[1756561253344,0.87632672,108690.0,108680.0,0.43164]
[1756561254480,0.53015229,108690.0,108680.0,0.43164]
[1756561254699,0.87632672,108690.0,108680.0,0.43164]
[1756561255177,0.89618667,108690.0,108680.0,0.43164]
[1756561256556,0.89416667,108690.0,108680.0,0.43164]
[1756561256684,0.87894716,108690.0,108680.0,0.43164]
[1756561256898,0.89618674,108690.0,108680.0,0.43164]
[1756561257727,0.89618685,108690.0,108680.0,0.43164]
[1756561257901,0.89618685,108690.0,108680.0,0.45008]
[1756561258120,0.89618685,108690.0,108680.0,0.43164]
[1756561261608,0.22891725,108690.0,108680.0,1.05482093]
[1756561261816,0.04490769,108690.0,108680.0,1.05482093]
[1756561262193,0.027668,108690.0,108680.0,0.7086465]
[1756561262425,0.027668,108690.0,108680.0,1.05482093]
[1756561262843,0.027668,108690.0,108680.0,1.42193418]
[1756561263167,0.53934892,108710.0,108690.0,0.18400505]
[1756561263370,0.027663,108700.0,108690.0,0.69391949]
[1756561263572,0.027663,108700.0,108690.0,1.12110949]
[1756561263776,0.19317449,108710.0,108700.0,0.18399264]
[1756561263959,0.23805784,108710.0,108700.0,0.28194265]
[1756561264362,0.23805784,108710.0,108700.0,0.55104265]
[1756561265041,0.24005784,108710.0,108700.0,0.28194265]
[1756561265282,0.22283549,108710.0,108700.0,0.28194265]
[1756561266550,0.22483549,108710.0,108700.0,0.28194265]
[1756561267151,0.22283549,108710.0,108700.0,0.28194265]
[1756561267357,0.22383549,108710.0,108700.0,0.28194265]
[1756561267566,0.22183549,108710.0,108700.0,0.28194265]
[1756561269775,0.22183549,108710.0,108700.0,0.55104265]
[1756561274753,0.028661,108710.0,108700.0,0.55104265]
[1756561275941,0.028661,108710.0,108700.0,0.89721708]
[1756561276348,0.001,108710.0,108700.0,0.89721708]
[1756561278169,0.001,108710.0,108700.0,0.9181559]
[1756561282212,0.001,108710.0,108700.0,0.99523033]
[1756561282420,0.001,108710.0,108700.0,0.6490559]
[1756561283491,0.001,108710.0,108700.0,0.8990559]
[1756561283733,0.001,108710.0,108700.0,1.24523033]
[1756561284128,0.001,108710.0,108700.0,1.40115033]
[1756561284334,0.001,108710.0,108700.0,0.70880147]
[1756561284483,0.001,108710.0,108700.0,1.0549759]
[1756561285089,0.001,108710.0,108700.0,0.55288147]
[1756561285302,0.001,108710.0,108700.0,0.8990559]
[1756561285505,0.001,108710.0,108700.0,0.8049759]
[1756561286574,0.001,108710.0,108700.0,0.45880147]
[1756561286793,0.001,108710.0,108700.0,0.8049759]
[1756561287412,0.001,108710.0,108700.0,1.0549759]
[1756561287684,0.001,108710.0,108700.0,1.7643759]
[1756561288381,0.001,108710.0,108700.0,1.7643359]
[1756561288589,0.001,108710.0,108700.0,1.5143359]
[1756561289779,0.18497571,108710.0,108700.0,1.16816147]
[1756561289983,0.18497571,108710.0,108700.0,1.5143359]
[1756561290393,0.18497571,108710.0,108700.0,1.7643359]
[1756561290695,0.18497571,108710.0,108700.0,1.41816147]
[1756561290906,0.18497571,108710.0,108700.0,1.7643359]
[1756561300012,0.60478106,108710.0,108700.0,1.07331883]
[1756561300303,0.55358535,108710.0,108700.0,1.20822001]
[1756561300524,0.55358535,108710.0,108700.0,0.96006001]
[1756561300525,0.58137278,108710.0,108700.0,0.96006001]
[1756561300770,0.60903278,108710.0,108700.0,0.96006001]
[1756561300992,0.94903278,108710.0,108700.0,0.86708]
[1756561302337,0.92124535,108710.0,108700.0,0.86708]
[1756561302829,1.26741978,108710.0,108700.0,0.2691]
[1756561303036,1.29372232,108710.0,108700.0,0.42686]
[1756561303269,1.29372232,108710.0,108700.0,0.2691]
[1756561303484,0.18399264,108700.0,108690.0,0.33986]
[1756561303693,0.89877671,108700.0,108690.0,0.59064001]
[1756561304805,0.93969843,108700.0,108670.0,0.07076]
[1756561305040,0.87637535,108680.0,108670.0,0.07076]
[1756561305267,0.54955613,108680.0,108670.0,0.32166001]
[1756561305497,0.58030413,108680.0,108670.0,0.32166001]
[1756561306405,0.58030413,108680.0,108670.0,0.3221379]
[1756561307043,0.58030413,108680.0,108670.0,0.1642179]
[1756561307253,0.58030413,108680.0,108670.0,0.3232579]
[1756561307459,0.2310497,108680.0,108670.0,0.3232579]
[1756561307902,0.2310497,108680.0,108670.0,0.3222579]
[1756561308106,0.2310497,108680.0,108670.0,0.3243479]
[1756561308503,0.2310497,108680.0,108670.0,0.1695379]
[1756561308712,0.21381449,108680.0,108670.0,0.3222579]
[1756561308924,0.23098758,108680.0,108670.0,0.3222579]
[1756561309617,0.57733769,108680.0,108670.0,0.1642179]
[1756561309833,0.58032769,108680.0,108670.0,0.3222179]
[1756561310564,0.23397758,108680.0,108670.0,0.3222179]
[1756561311113,0.23098758,108680.0,108670.0,0.3222179]
[1756561311333,0.24015137,108680.0,108670.0,0.3243879]
[1756561311549,0.24015137,108680.0,108670.0,0.3273479]
[1756561313093,0.24005137,108680.0,108670.0,0.3273479]
[1756561315325,0.21390677,108680.0,108670.0,0.3273479]
[1756561315787,0.21188677,108680.0,108670.0,0.3273479]
[1756561317143,0.21390677,108680.0,108670.0,0.3273479]
[1756561317481,0.21390677,108680.0,108670.0,0.5964479]
[1756561319194,0.19673368,108680.0,108670.0,0.5964479]
[1756561319407,0.21388322,108680.0,108670.0,0.5964479]
[1756561320259,0.21388337,108680.0,108670.0,0.5964479]
[1756561320625,0.21388337,108680.0,108670.0,0.3625579]
[1756561320837,0.90322348,108680.0,108670.0,0.00047789]
[1756561321055,0.93101091,108680.0,108670.0,0.15867789]
[1756561321269,0.93101091,108680.0,108670.0,0.15871789]
[1756561324371,0.5846608,108680.0,108670.0,0.15871789]
[1756561324615,0.93101091,108680.0,108670.0,0.15871789]
[1756561325469,1.01930723,108680.0,108670.0,0.15867789]
[1756561325670,1.01930723,108680.0,108670.0,0.00047789]
[1756561326318,1.02574161,108680.0,108670.0,0.00047789]
[1756561326530,6.27692162,108680.0,108670.0,0.00047789]
[1756561326734,6.2966863,108680.0,108670.0,1e-08]
[1756561326935,6.26989887,108680.0,108670.0,1e-08]
[1756561327143,6.2976863,108680.0,108670.0,1e-08]
[1756561327346,6.31209143,108680.0,108670.0,1e-08]
[1756561327548,6.33678844,108680.0,108670.0,1e-08]
[1756561327972,6.33778844,108680.0,108670.0,1e-08]
[1756561328247,5.90334201,108680.0,108670.0,1e-08]
[1756561328431,6.24769212,108680.0,108670.0,1e-08]
[1756561328643,6.24969212,108680.0,108670.0,1e-08]
[1756561328847,6.25169883,108680.0,108670.0,1e-08]
[1756561329278,6.2546981,108680.0,108670.0,1e-08]
[1756561329501,6.25470148,108680.0,108670.0,1e-08]
[1756561329917,6.3429978,108680.0,108670.0,1e-08]
[1756561330372,6.3432378,108680.0,108670.0,1e-08]
[1756561331259,0.52407731,108650.0,108640.0,0.1616]
[1756561331481,0.8896072,108650.0,108640.0,0.43287]
[1756561331922,0.9172852,108650.0,108640.0,0.43287]
[1756561332194,0.9172852,108650.0,108640.0,0.27127]
[1756561332420,0.92371991,108650.0,108640.0,0.2691]
[1756561332632,0.92371991,108650.0,108640.0,0.27127]
[1756561332822,0.92371991,108650.0,108640.0,0.2701]
[1756561333068,0.92371991,108650.0,108640.0,0.27227]
[1756561333293,0.9172852,108650.0,108640.0,0.27523]
[1756561333552,0.92371941,108650.0,108640.0,0.27723]
[1756561334419,0.9152652,108650.0,108640.0,0.27723]
[1756561335302,0.56891509,108650.0,108640.0,0.27723]
[1756561335746,0.56891509,108650.0,108640.0,0.27423]
[1756561336289,0.9152652,108650.0,108640.0,0.27423]
[1756561337015,0.56891509,108650.0,108640.0,0.27423]
[1756561338461,0.9152652,108650.0,108640.0,0.27423]
[1756561339425,0.91525837,108650.0,108640.0,0.27423]
[1756561343475,0.56890826,108650.0,108640.0,0.27423]
[1756561343693,0.91525837,108650.0,108640.0,0.27423]
[1756561343916,0.56890826,108650.0,108640.0,0.27423]
[1756561344360,0.91525837,108650.0,108640.0,0.27423]
[1756561344846,0.91737837,108650.0,108640.0,0.27423]
[1756561345067,0.91737837,108650.0,108640.0,0.42814]
[1756561345496,0.92381446,108650.0,108640.0,0.42814]
[1756561346174,0.57746435,108650.0,108640.0,0.43339]
[1756561346393,0.92381446,108650.0,108640.0,0.43339]
[1756561346604,0.92381596,108650.0,108640.0,0.43339]
[1756561347339,0.92169596,108650.0,108640.0,0.43339]
[1756561347554,0.92381596,108650.0,108640.0,0.43339]
[1756561347970,0.92169596,108650.0,108640.0,0.43339]
[1756561349553,0.92381596,108650.0,108640.0,0.43339]
[1756561350080,0.90454997,108650.0,108640.0,0.43339]
[1756561350333,0.92173558,108650.0,108640.0,0.43339]
[1756561354292,0.92385558,108650.0,108640.0,0.43339]
[1756561354504,0.94368115,108650.0,108640.0,0.43339]
[1756561356115,0.94156115,108650.0,108640.0,0.43339]
[1756561357388,0.94368115,108650.0,108640.0,0.43339]
[1756561358853,0.94156115,108650.0,108640.0,0.43339]
[1756561360541,0.9351626,108650.0,108640.0,0.43339]
[1756561360752,0.94162445,108650.0,108640.0,0.43339]
[1756561361178,0.94374445,108650.0,108640.0,0.2691]
[1756561361397,0.94374445,108650.0,108640.0,0.42822]
[1756561362121,0.94692445,108650.0,108640.0,0.42822]
[1756561363504,0.94692445,108650.0,108640.0,0.42814]
[1756561364162,0.94692445,108650.0,108640.0,0.2691]
[1756561364639,0.97471188,108650.0,108640.0,0.2691]
[1756561364868,0.97471188,108650.0,108640.0,0.42822]
[1756561367420,0.94692445,108650.0,108640.0,0.42822]
[1756561367629,0.94692405,108650.0,108640.0,0.42822]
[1756561368039,0.94692405,108650.0,108640.0,0.42838]
[1756561368303,0.94692347,108650.0,108640.0,0.2691]
[1756561368512,0.94692347,108650.0,108640.0,0.42838]
[1756561369164,0.94374347,108650.0,108640.0,0.42838]
[1756561369501,0.94672347,108650.0,108640.0,0.42838]
[1756561369899,0.94672347,108650.0,108640.0,0.2691]
[1756561370124,0.9745109,108650.0,108640.0,0.42838]
[1756561370838,0.9745109,108650.0,108640.0,0.15928]
[1756561371189,0.97450986,108650.0,108640.0,0.15928]
[1756561371446,1.32141371,108650.0,108640.0,0.15928]
[1756561371831,1.31843371,108650.0,108640.0,0.15928]
[1756561372188,1.32141371,108650.0,108640.0,0.15928]
[1756561372408,0.52409425,108640.0,108630.0,0.07495]
[1756561372629,1.21734821,108640.0,108630.0,0.23419]
[1756561372751,1.21734821,108640.0,108630.0,0.23635]
[1756561372961,1.24502721,108640.0,108630.0,0.23635]
[1756561373403,0.55385325,108640.0,108630.0,0.23635]
[1756561373629,1.24502721,108640.0,108630.0,0.23843789]
[1756561374106,0.55177325,108640.0,108630.0,0.23843789]
[1756561374313,1.24502721,108640.0,108630.0,0.23843789]
[1756561374796,1.24502721,108640.0,108630.0,0.23943789]
[1756561375374,1.24710721,108640.0,108630.0,0.23943789]
[1756561375789,1.24502721,108640.0,108630.0,0.23943789]
[1756561376215,1.26225505,108640.0,108630.0,0.23943789]
[1756561376625,1.26225505,108640.0,108630.0,0.50853789]
[1756561377274,1.26433505,108640.0,108630.0,0.50853789]
[1756561378070,0.91770807,108640.0,108630.0,0.50853789]
[1756561379249,0.91562807,108640.0,108630.0,0.50853789]
[1756561379876,0.56900109,108640.0,108630.0,0.50853789]
[1756561380099,0.91562807,108640.0,108630.0,0.50853789]
[1756561380780,0.56900109,108640.0,108630.0,0.85516487]
[1756561381001,0.56900109,108640.0,108630.0,0.50853789]
[1756561381217,0.55177325,108640.0,108630.0,0.85516487]
[1756561381435,0.56899998,108640.0,108630.0,0.85516487]
[1756561383034,0.56899998,108640.0,108630.0,0.50853789]
[1756561383284,0.56899998,108640.0,108630.0,0.85516487]
[1756561385283,0.55177325,108640.0,108630.0,0.50853789]
[1756561385521,0.56900112,108640.0,108630.0,0.85516487]
[1756561385732,0.56900112,108640.0,108630.0,0.50853789]
[1756561385951,0.56900112,108640.0,108630.0,0.85516487]
[1756561386836,0.56900112,108640.0,108630.0,1.13225608]
[1756561387484,0.56900112,108640.0,108630.0,0.7856291]
[1756561389271,0.56900112,108640.0,108630.0,0.6263891]
[1756561389545,0.9156281,108640.0,108630.0,0.4422779]
[1756561389754,0.9156281,108640.0,108630.0,0.6018379]
[1756561390311,0.9156281,108640.0,108630.0,0.4422779]
[1756561390549,0.9156281,108640.0,108630.0,0.6018779]
[1756561391216,0.91562907,108640.0,108630.0,0.6018779]
[1756561391430,0.91562907,108640.0,108630.0,0.4422779]
[1756561391662,1.26433605,108640.0,108630.0,0.6018379]
[1756561391876,1.26433605,108640.0,108630.0,0.5986879]
[1756561392114,1.2643363,108640.0,108630.0,0.5278879]
[1756561393480,1.26433732,108640.0,108630.0,0.5278879]
[1756561394594,1.2643368,108640.0,108630.0,0.5310779]
[1756561397106,1.2643368,108640.0,108630.0,0.5278879]
[1756561398348,0.91770982,108640.0,108630.0,0.5310779]
[1756561399457,0.91770982,108640.0,108630.0,0.5278879]
[1756561399684,1.2643368,108640.0,108630.0,0.5278879]
[1756561400943,0.57108284,108640.0,108630.0,0.5310279]
[1756561401123,1.2643368,108640.0,108630.0,0.5310279]
[1756561401363,1.2643368,108640.0,108630.0,0.5254879]
[1756561401794,1.24710721,108640.0,108630.0,0.5254879]
[1756561402018,1.26433729,108640.0,108630.0,0.5254879]
[1756561402370,1.26433729,108640.0,108630.0,0.5274679]
[1756561402583,1.26433729,108640.0,108630.0,0.5306079]
[1756561402784,1.26433731,108640.0,108630.0,0.5306079]
[1756561403794,1.26225731,108640.0,108630.0,0.5306079]
[1756561404610,0.56900335,108640.0,108630.0,0.5306079]
[1756561404813,1.26225731,108640.0,108630.0,0.5306079]
[1756561405030,0.56900335,108640.0,108630.0,0.5306079]
[1756561405244,1.26225731,108640.0,108630.0,0.5306079]
[1756561405486,0.57111335,108640.0,108630.0,0.5254879]
[1756561405712,1.26436731,108640.0,108630.0,0.5274679]
[1756561406772,1.26436731,108640.0,108630.0,0.5275479]
[1756561408680,1.26436731,108640.0,108630.0,0.3681479]
[1756561408934,1.26436731,108640.0,108630.0,0.5254879]
[1756561409426,0.92436731,108640.0,108630.0,0.5254879]
[1756561409851,0.92758731,108640.0,108630.0,0.27318789]
[1756561410073,0.92758731,108640.0,108630.0,0.43254789]
[1756561412495,0.91035721,108640.0,108630.0,0.43254789]
[1756561412706,0.927587,108640.0,108630.0,0.43254789]
[1756561413504,0.95537443,108640.0,108630.0,0.43250789]
[1756561413708,0.96183486,108640.0,108630.0,0.43250789]
[1756561415093,1.30183486,108640.0,108630.0,0.43250789]
[1756561415300,1.27404743,108640.0,108630.0,0.43250789]
[1756561416600,1.27082743,108640.0,108630.0,0.43250789]
[1756561417826,1.27404743,108640.0,108630.0,0.43250789]
[1756561419152,1.27082743,108640.0,108630.0,0.43250789]
[1756561420191,1.27404743,108640.0,108630.0,0.43250789]
[1756561420600,1.27082743,108640.0,108630.0,0.43250789]
[1756561421521,1.27082743,108640.0,108630.0,0.43448789]
[1756561422627,1.27082743,108640.0,108630.0,0.43762789]
[1756561423153,1.27081817,108640.0,108630.0,0.43762789]
[1756561423778,1.27081828,108640.0,108630.0,0.43762789]
[1756561428192,1.26870828,108640.0,108630.0,0.43762789]
[1756561428407,1.26224785,108640.0,108630.0,0.43762789]
[1756561428829,0.56899389,108640.0,108630.0,0.43762789]
[1756561429041,1.26224785,108640.0,108630.0,0.43762789]
[1756561429897,0.22899389,108640.0,108630.0,0.43762789]
[1756561430134,0.56899389,108640.0,108630.0,0.43762789]
[1756561430350,0.91562435,108640.0,108630.0,0.43762789]
[1756561431654,1.26225133,108640.0,108630.0,0.43762789]
[1756561433840,1.26225262,108640.0,108630.0,0.43762789]
[1756561434097,1.26225262,108640.0,108630.0,0.27830789]
[1756561434317,1.26426262,108640.0,108630.0,0.43694789]
[1756561434753,1.26426311,108640.0,108630.0,0.43694789]
[1756561435189,0.57100915,108640.0,108630.0,0.43694789]
[1756561435643,1.26426311,108640.0,108630.0,0.43694789]
[1756561435851,1.26426311,108640.0,108630.0,0.43722789]
[1756561436907,1.26426311,108640.0,108630.0,0.43408789]
[1756561437548,0.57100915,108640.0,108630.0,0.43408789]
[1756561437753,1.26426311,108640.0,108630.0,0.43408789]
[1756561437974,1.26426311,108640.0,108630.0,0.43400789]
[1756561439012,1.26426311,108640.0,108630.0,0.43202789]
[1756561439296,1.26426311,108640.0,108630.0,0.43198789]
[1756561440827,1.2642663,108640.0,108630.0,0.43198789]
[1756561441759,1.2642663,108640.0,108630.0,0.43414789]
[1756561442724,1.2642663,108640.0,108630.0,0.43198789]
[1756561443102,1.24703721,108640.0,108630.0,0.43198789]
[1756561443310,1.26426644,108640.0,108630.0,0.43198789]
[1756561443523,1.26426644,108640.0,108630.0,0.43414789]
[1756561443946,1.26426644,108640.0,108630.0,0.43710789]
[1756561448875,1.26426644,108640.0,108630.0,0.27830789]
[1756561449090,1.26426644,108640.0,108630.0,0.27318789]
[1756561449298,1.26426644,108640.0,108630.0,0.43146789]
[1756561449504,0.57101248,108640.0,108630.0,0.43146789]
[1756561449723,1.26426644,108640.0,108630.0,0.27318789]
[1756561449938,1.26426644,108640.0,108630.0,0.43146789]
[1756561450131,0.57101248,108640.0,108630.0,0.43150789]
[1756561450335,1.26426644,108640.0,108630.0,0.43150789]
[1756561451192,1.27396839,108640.0,108630.0,0.43150789]
[1756561451396,1.29381959,108640.0,108630.0,0.27318789]
[1756561451606,1.29381959,108640.0,108630.0,0.43146789]
[1756561451809,1.29381959,108640.0,108630.0,0.27318789]
[1756561451988,1.64044657,108640.0,108630.0,0.43146789]
[1756561452197,1.29381959,108640.0,108630.0,0.43146789]
[1756561452400,1.29381959,108640.0,108630.0,0.27318789]
[1756561452591,1.29381959,108640.0,108630.0,0.43146789]
[1756561453817,1.27659029,108640.0,108630.0,0.16236789]
[1756561454019,1.29382198,108640.0,108630.0,0.16236789]
[1756561459695,1.29382198,108640.0,108630.0,0.43146789]
[1756561460111,1.29058198,108640.0,108630.0,0.43146789]
[1756561460325,1.29380198,108640.0,108630.0,0.43146789]
[1756561460535,1.29379915,108640.0,108630.0,0.43146789]
[1756561462632,1.29379915,108640.0,108630.0,0.43129818]
[1756561463558,1.29057915,108640.0,108630.0,0.43129818]
[1756561464567,1.28411415,108640.0,108630.0,0.43129818]
[1756561464784,1.29057486,108640.0,108630.0,0.43129818]
[1756561465081,1.29379486,108640.0,108630.0,0.43129818]
[1756561465717,1.29379486,108640.0,108630.0,0.16219818]
[1756561466957,1.64042184,108640.0,108630.0,0.16219818]
[1756561468618,1.64042184,108640.0,108630.0,0.16195051]
[1756561470041,1.63720184,108640.0,108630.0,0.16195051]
[1756561470228,1.64042184,108640.0,108630.0,0.16195051]
[1756561471030,1.63720184,108640.0,108630.0,0.16195051]
[1756561472641,1.64042184,108640.0,108630.0,0.16195051]
[1756561473233,1.64042184,108640.0,108630.0,0.16131124]
[1756561474631,0.5973209,108640.0,108630.0,0.16131124]
[1756561474876,1.63720184,108640.0,108630.0,0.16131124]
[1756561475082,0.57363162,108640.0,108630.0,0.16131124]
[1756561475283,1.64042107,108640.0,108630.0,0.16131124]
[1756561475482,1.63720107,108640.0,108630.0,0.16131124]
[1756561476108,1.81695563,108640.0,108630.0,0.00303124]
[1756561476307,1.83136435,108640.0,108630.0,0.00303124]
[1756561476725,1.85617481,108640.0,108630.0,0.00303124]
[1756561476922,1.88396224,108640.0,108630.0,0.00203124]
[1756561477146,1.88396224,108640.0,108630.0,3.124e-05]